fUST/lending_fUST_20250602
["ID","MTS","AMOUNT","RATE_DAILY","PERIOD"]
[363694619,1748819436505,-762.9,0.00017808,2]
[363694620,1748819436527,-747.1,0.00017808,2]
[363694621,1748819436537,-430.0,0.00017808,2]
[363694622,1748819436547,-999.17,0.00017808,2]
[363694623,1748819436556,-675.04,0.00017808,2]
[363694624,1748819436566,-960.76,0.00017808,2]
[363694625,1748819436575,-886.47,0.00017808,2]
[363694626,1748819436586,-430.0,0.00017808,2]
[363694627,1748819436595,-1000.0,0.0001782,2]
[363694628,1748819436605,-1000.0,0.0001782,2]
[363694629,1748819436615,-1000.0,0.00017862,2]
[363694630,1748819436626,-500.0,0.00017874,2]
[363694631,1748819436636,-4033.05651082,0.000179,2]
[363694632,1748819436645,-500.0,0.00017941,2]
[363694633,1748819436655,-500.0,0.00017941,2]
[363694634,1748819436665,-420.0,0.00017958,2]
[363694635,1748819436675,-420.0,0.00017958,2]
[363694636,1748819436685,-1000.0,0.0001796,2]
[363694637,1748819436695,-500.0,0.00017961,2]
[363694638,1748819436706,-500.0,0.00017961,2]
[363694639,1748819436717,-500.0,0.00017961,2]
[363694640,1748819436727,-1000.0,0.00017987,7]
[363694641,1748819436738,-1000.0,0.00017987,2]
[363694642,1748819436748,-1000.0,0.00017987,7]
[363694643,1748819436759,-1000.0,0.00017987,2]
[363694644,1748819436769,-1000.0,0.00017987,7]
[363694645,1748819436779,-1000.0,0.00017987,2]
[363694646,1748819436789,-1000.0,0.00017987,7]
[363694647,1748819436798,-1000.0,0.00017987,2]
[363694648,1748819436808,-1000.0,0.00017987,7]
[363694649,1748819436818,-182.95,0.00018,2]
[363694650,1748819436829,-182.95,0.00018,2]
[363694651,1748819436838,-151.0,0.00018,2]
[363694652,1748819436847,-1000.0,0.00018005,7]
[363694653,1748819436856,-500.0,0.00018016,2]
[363694654,1748819436866,-1680.0,0.00018046,2]
[363694655,1748819436878,-500.0,0.00018076,2]
[363694656,1748819436888,-430.0,0.00018082,2]
[363694657,1748819436897,-430.0,0.00018082,2]
[363694658,1748819436907,-257.2,0.00018082,2]
[363694659,1748819436918,-430.0,0.00018082,2]
[363694660,1748819436927,-430.0,0.00018082,2]
[363694661,1748819436937,-571.35,0.00018082,2]
[363694662,1748819436946,-430.0,0.00018082,2]
[363694663,1748819436955,-452.79,0.00018082,2]
[363694664,1748819436965,-430.0,0.00018082,2]
[363694665,1748819436974,-762.9,0.00018082,2]
[363694666,1748819436983,-747.1,0.00018082,2]
[363694667,1748819436993,-430.0,0.00018082,2]
[363694668,1748819437002,-999.17,0.00018082,2]
[363694669,1748819437016,-675.04,0.00018082,2]
[363694670,1748819437027,-960.76,0.00018082,2]
[363694671,1748819437036,-886.47,0.00018082,2]
[363694672,1748819437046,-430.0,0.00018082,2]
[363694673,1748819437055,-861.4206246,0.00018082,2]
[363694674,1748819437065,-500.0,0.00018085,2]
[363694675,1748819437075,-550.77853482,0.00018085,2]
[363694676,1748819437084,-1000.0,0.00018105,2]
[363694677,1748819437094,-4033.05651081,0.00018107,2]
[363694678,1748819437103,-897.01,0.00018165,2]
[363694679,1748819437113,-530.66870168,0.00018275,2]
[363694680,1748819437123,-4033.05651081,0.00018314,2]
[363694681,1748819437132,-160.0,0.00018355,2]
[363694682,1748819437142,-430.0,0.00018356,2]
[363694683,1748819437151,-179.55,0.00018356,2]
[363694684,1748819437161,-430.0,0.00018356,2]
[363694685,1748819437171,-430.0,0.00018356,2]
[363694686,1748819437180,-430.0,0.00018356,2]
[363694687,1748819437190,-452.79,0.00018356,2]
[363694688,1748819437199,-430.0,0.00018356,2]
[363694689,1748819437209,-762.9,0.00018356,2]
[363694690,1748819437218,-747.1,0.00018356,2]
[363694691,1748819437228,-430.0,0.00018356,2]
[363694692,1748819437237,-999.17,0.00018356,2]
[363694693,1748819437247,-675.04,0.00018356,2]
[363694694,1748819437256,-960.76,0.00018356,2]
[363694695,1748819437266,-886.47,0.00018356,2]
[363694696,1748819437276,-430.0,0.00018356,2]
[363694697,1748819437285,-1000.0,0.00018368,2]
[363694698,1748819437296,-151.0,0.000184,2]
[363694699,1748819437305,-1000.0,0.00018422,2]
[363694700,1748819437316,-1000.0,0.00018489,2]
[363694701,1748819437326,-564.54710437,0.00018489,2]
[363694702,1748819437336,-804.41326638,0.00018509,2]
[363694703,1748819437346,-500.0,0.00018509,2]
[363694704,1748819437355,-500.0,0.00018509,2]
[363694705,1748819437366,-4033.05651081,0.00018521,2]
[363694706,1748819437379,-741.32313444,0.00018564,2]
[363694707,1748819437388,-1000.0,0.00018629,2]
[363694708,1748819437399,-430.0,0.0001863,2]
[363694709,1748819437409,-430.0,0.0001863,2]
[363694710,1748819437419,-430.0,0.0001863,2]
[363694711,1748819437428,-430.0,0.0001863,2]
[363694712,1748819437437,-452.79,0.0001863,2]
[363694713,1748819437447,-430.0,0.0001863,2]
[363694714,1748819437456,-762.9,0.0001863,2]
[363694715,1748819437466,-747.1,0.0001863,2]
[363694716,1748819437475,-430.0,0.0001863,2]
[363694717,1748819437485,-999.17,0.0001863,2]
[363694718,1748819437498,-675.04,0.0001863,2]
[363694719,1748819437508,-960.76,0.0001863,2]
[363694720,1748819437517,-886.47,0.0001863,2]
[363694721,1748819437527,-532.15,0.0001863,2]
[363694722,1748819437536,-151.0,0.000187,2]
[363694723,1748819437545,-4033.05651081,0.00018728,2]
[363694724,1748819437555,-212.80060342,0.00018741,2]
[363694725,1748819437564,-160.0,0.00018741,2]
[363694726,1748819437574,-160.0,0.00018741,2]
[363694727,1748819437584,-160.0,0.00018741,2]
[363694728,1748819437595,-423.51412927,0.00018741,2]
[363694729,1748819437605,-229.3709046,0.00018741,2]
[363694730,1748819437614,-12666.87825251,0.00018741,2]
[363694731,1748819437626,-1000.0,0.00018903,2]
[363694732,1748819437636,-430.0,0.00018904,2]
[363694733,1748819437647,-430.0,0.00018904,2]
[363694734,1748819437656,-430.0,0.00018904,2]
[363694735,1748819437666,-430.0,0.00018904,2]
[363694736,1748819437675,-452.79,0.00018904,2]
[363694737,1748819437685,-430.0,0.00018904,2]
[363694738,1748819437695,-762.9,0.00018904,2]
[363694739,1748819437705,-747.1,0.00018904,2]
[363694740,1748819437715,-430.0,0.00018904,2]
[363694741,1748819437724,-999.17,0.00018904,2]
[363694742,1748819437734,-675.04,0.00018904,2]
[363694743,1748819437743,-960.76,0.00018904,2]
[363694744,1748819437753,-886.47,0.00018904,2]
[363694745,1748819437763,-4033.05651081,0.00018934,2]
[363694746,1748819437772,-1200.0,0.00018971,2]
[363694747,1748819437782,-507.66408941,0.00019037,2]
[363694748,1748819437791,-359.86,0.00019039,3]
[363694749,1748819437802,-151.0,0.000191,2]
[363694750,1748819437812,-4033.05651081,0.00019141,2]
[363694751,1748819437821,-256.27337144,0.00019178,2]
[363694752,1748819437831,-188.3,0.00019178,2]
[363694753,1748819437842,-430.0,0.00019178,2]
[363694754,1748819437852,-500.0,0.00019178,2]
[363694755,1748819437862,-430.0,0.00019178,2]
[363694756,1748819437872,-500.0,0.00019178,2]
[363694757,1748819437881,-500.0,0.00019178,2]
[363694758,1748819437890,-500.0,0.00019178,2]
[363694759,1748819437900,-430.0,0.00019178,2]
[363694760,1748819437909,-306.46034291,0.00019178,2]
[363694761,1748819437920,-452.79,0.00019178,2]
[363694762,1748819437929,-511.5,0.00019178,2]
[363694763,1748819437940,-762.9,0.00019178,2]
[363694764,1748819437949,-747.1,0.00019178,2]
[363694765,1748819437959,-430.0,0.00019178,2]
[363694766,1748819437969,-999.17,0.00019178,2]
[363694767,1748819437978,-675.04,0.00019178,2]
[363694768,1748819437988,-960.76,0.00019178,2]
[363694769,1748819437997,-886.47,0.00019178,2]
[363694770,1748819438007,-500.0,0.00019178,2]
[363694771,1748819438016,-512.43335756,0.00019178,2]
[363694772,1748819438026,-500.0,0.00019178,2]
[363694773,1748819438035,-500.0,0.00019178,2]
[363694774,1748819438045,-500.0,0.00019178,2]
[363694776,1748819438055,-500.0,0.00019178,2]
[363694777,1748819438065,-151.0,0.00019178,2]
[363694778,1748819438074,-173.899304,0.00019178,2]
[363694779,1748819438083,-3874.26074728,0.00019206,2]
[363694780,1748819438093,-156.587,0.00019233,2]
[363694781,1748819438102,-162.380719,0.00019288,2]
[363694782,1748819438111,-151.0,0.000193,2]
[363694783,1748819438121,-168.3888056,0.00019343,2]
[363694784,1748819438131,-4033.05651081,0.00019348,2]
[363694785,1748819438140,-174.61919141,0.00019398,2]
[363694786,1748819438150,-1000.0,0.00019451,2]
[363694787,1748819438160,-430.0,0.00019452,2]
[363694788,1748819438172,-430.0,0.00019452,2]
[363694789,1748819438182,-430.0,0.00019452,2]
[363694791,1748819438192,-452.79,0.00019452,2]
[363694792,1748819438201,-762.9,0.00019452,2]
[363694793,1748819438211,-747.1,0.00019452,2]
[363694794,1748819438220,-430.0,0.00019452,2]
[363694795,1748819438229,-999.17,0.00019452,2]
[363694796,1748819438239,-675.04,0.00019452,2]
[363694797,1748819438248,-960.76,0.00019452,2]
[363694798,1748819438258,-886.47,0.00019452,2]
[363694800,1748819438268,-181.08010149,0.00019453,2]
[363694802,1748819438278,-187.78006525,0.00019508,2]
[363694804,1748819438287,-4033.05651081,0.00019555,2]
[363694806,1748819438297,-194.72792766,0.00019563,2]
[363694807,1748819438306,-443.179,0.00019592,2]
[363694808,1748819438318,-178.59002559,0.00019592,2]
[363694809,1748819438328,-201.93286099,0.00019618,2]
[363694810,1748819438339,-587.0,0.00019625,2]
[363694811,1748819438348,-209.40437684,0.00019673,2]
[363694812,1748819438358,-160.0,0.00019725,2]
[363694813,1748819438369,-430.0,0.00019726,2]
[363694814,1748819438379,-289.65,0.00019726,2]
[363694816,1748819438389,-430.0,0.00019726,2]
[363694818,1748819438400,-452.79,0.00019726,2]
[363694820,1748819438410,-762.9,0.00019726,2]
[363694822,1748819438420,-747.1,0.00019726,2]
[363694824,1748819438430,-430.0,0.00019726,2]
[363694826,1748819438441,-999.17,0.00019726,2]
[363694829,1748819438451,-675.04,0.00019726,2]
[363694831,1748819438461,-960.76,0.00019726,2]
[363694833,1748819438471,-886.47,0.00019726,2]
[363694834,1748819438481,-217.15233878,0.00019728,2]
[363694836,1748819438491,-4033.05651081,0.00019762,2]
[363694838,1748819438501,-225.18697532,0.00019783,2]
[363694840,1748819438511,-151.0,0.000198,2]
[363694843,1748819438522,-1794.02,0.00019817,2]
[363694845,1748819438532,-2351.0,0.00019821,2]
[363694847,1748819438543,-233.51889341,0.00019838,2]
[363694848,1748819438553,-242.15909246,0.00019893,2]
[363694850,1748819438562,-251.11897888,0.00019948,2]
[363694852,1748819438573,-4033.05651081,0.00019969,2]
[363694854,1748819438583,-12781.93875942,0.0001999,2]
[363694856,1748819438593,-151.0,0.0002,2]
[363694858,1748819438603,-430.0,0.0002,2]
[363694860,1748819438613,-430.0,0.0002,2]
[363694862,1748819438624,-452.79,0.0002,2]
[363694865,1748819438634,-762.9,0.0002,2]
[363694867,1748819438645,-747.1,0.0002,2]
[363694869,1748819438655,-509.3,0.0002,2]
[363694871,1748819438667,-999.17,0.0002,2]
[363694873,1748819438678,-675.04,0.0002,2]
[363694875,1748819438687,-960.76,0.0002,2]
[363694877,1748819438697,-886.47,0.0002,2]
[363694879,1748819438706,-217.06411405,0.00020003,2]
[363694881,1748819438716,-1000.0,0.00020037,2]
[363694883,1748819438727,-1200.0,0.00020067,2]
[363694885,1748819438736,-478.90915414,0.00020145,2]
[363694887,1748819438747,-500.0,0.00020145,2]
[363694889,1748819438756,-525.58676027,0.00020145,2]
[363694891,1748819438766,-500.0,0.00020145,2]
[363694893,1748819438775,-500.0,0.00020145,2]
[363694895,1748819438785,-4033.05651081,0.00020176,2]
[363694897,1748819438794,-260.486712,0.00020187,2]
[363694899,1748819438804,-500.0,0.0002024,2]
[363694901,1748819438815,-430.0,0.00020273,2]
[363694903,1748819438825,-430.0,0.00020273,2]
[363694905,1748819438835,-452.79,0.00020273,2]
[363694907,1748819438845,-762.9,0.00020273,2]
[363694909,1748819438855,-747.1,0.00020273,2]
[363694911,1748819438865,-999.17,0.00020273,2]
[363694913,1748819438876,-675.04,0.00020273,2]
[363694915,1748819438886,-960.76,0.00020273,2]
[363694917,1748819438896,-886.47,0.00020273,2]
[363694919,1748819438906,-176.4890519,0.00020274,2]
[363694921,1748819438916,-158.4848398,0.00020274,2]
[363694923,1748819438926,-176.4890519,0.00020274,2]
[363694925,1748819438936,-572.3927371,0.00020274,2]
[363694927,1748819438946,-158.4848398,0.00020274,2]
[363694929,1748819438957,-158.4848398,0.00020274,2]
[363694931,1748819438966,-2095.65843846,0.00020383,3]
[363694932,1748819439600,554.84436131,0.0002465,120]
[363694933,1748819439622,-300.0,0.00016274,2]
[363694934,1748819439634,-337.02880205,0.00016274,2]
[363694935,1748819439646,-258.10698352,0.00016274,2]
[363694936,1748819439666,-4104.86421443,0.00016274,2]
[363694937,1748819439676,-767.87,0.00016986,2]
[363694938,1748819439686,-767.87,0.0001726,2]
[363694939,1748819439696,-767.87,0.00017534,2]
[363694940,1748819439706,-664.03928102,0.00017803,2]
[363694941,1748819439717,-664.03928102,0.00017803,2]
[363694942,1748819439727,-664.03928102,0.00017803,2]
[363694943,1748819439737,-664.03928102,0.00017803,2]
[363694944,1748819439748,-767.87,0.00017808,2]
[363694945,1748819439757,-767.87,0.00018082,2]
[363694946,1748819439767,-767.87,0.00018356,2]
[363694947,1748819439777,-767.87,0.0001863,2]
[363694948,1748819439786,-767.87,0.00018904,2]
[363694949,1748819439796,-500.0,0.00019178,2]
[363694950,1748819439806,-500.0,0.00019178,2]
[363694951,1748819439816,-767.87,0.00019178,2]
[363694952,1748819439825,-767.87,0.00019452,2]
[363694953,1748819439836,-767.87,0.00019726,2]
[363694954,1748819439846,-767.87,0.0002,2]
[363694955,1748819439856,-767.87,0.00020273,2]
[363694956,1748819439866,-1937.39807235,0.00020383,3]
[363694957,1748819439877,-151.0,0.000205,4]
[363694958,1748819439887,-430.0,0.00020547,2]
[363694959,1748819439896,-430.0,0.00020547,2]
[363694960,1748819439906,-452.79,0.00020547,2]
[363694961,1748819439917,-762.9,0.00020547,2]
[363694962,1748819439927,-747.1,0.00020547,2]
[363694963,1748819439938,-999.17,0.00020547,2]
[363694964,1748819439948,-675.04,0.00020547,2]
[363694965,1748819439958,-960.76,0.00020547,2]
[363694966,1748819439968,-886.47,0.00020547,2]
[363694967,1748819439978,-767.87,0.00020547,2]
[363694968,1748819439988,-572.3927371,0.00020548,2]
[363694969,1748819439997,-158.4848398,0.00020548,2]
[363694970,1748819440007,-176.4890519,0.00020548,2]
[363694971,1748819440017,-572.3927371,0.00020548,2]
[363694972,1748819440027,-4033.05651081,0.0002059,3]
[363694973,1748819440037,-257.08,0.000206,2]
[363694974,1748819440047,-151.0,0.000206,4]
[363694975,1748819440056,-2614.29,0.000206,2]
[363694976,1748819440066,-3874.26074728,0.00020704,2]
[363694977,1748819440076,-1000.0,0.00020761,2]
[363694978,1748819440086,-859.78747334,0.00020788,2]
[363694979,1748819440096,-4033.05651081,0.00020797,4]
[363694980,1748819440105,-403.8,0.00020821,2]
[363694981,1748819440115,-430.0,0.00020821,2]
[363694982,1748819440125,-452.79,0.00020821,2]
[363694983,1748819440134,-762.9,0.00020821,2]
[363694984,1748819440144,-747.1,0.00020821,2]
[363694985,1748819440155,-999.17,0.00020821,2]
[363694986,1748819440165,-675.04,0.00020821,2]
[363694987,1748819440175,-960.76,0.00020821,2]
[363694988,1748819440186,-886.47,0.00020821,2]
[363694989,1748819440196,-767.87,0.00020821,2]
[363694990,1748819440206,-176.4890519,0.00020822,2]
[363694991,1748819440216,-153.0,0.00020822,2]
[363694992,1748819440226,-158.4848398,0.00020822,2]
[363694994,1748819440236,-728.7564356,0.00020822,2]
[363694995,1748819440245,-572.3927371,0.00020822,2]
[363694996,1748819440255,-176.4890519,0.00020822,2]
[363694997,1748819440264,-364.3782178,0.00020822,2]
[363694998,1748819440274,-1573.32953,0.00020999,2]
[363694999,1748819440283,-3000.0,0.00021,2]
[363695000,1748819440293,-151.0,0.00021,3]
[363695001,1748819440303,-4033.05651081,0.00021003,4]
[363695002,1748819440313,-3000.0,0.0002101,2]
[363695003,1748819440326,-1000.0,0.00021019,2]
[363695004,1748819440335,-3000.0,0.0002102,2]
[363695005,1748819440345,-3000.0,0.0002103,2]
[363695006,1748819440354,-3000.0,0.0002104,2]
[363695007,1748819440365,-3000.0,0.0002105,2]
[363695008,1748819440376,-3000.0,0.0002106,2]
[363695009,1748819440386,-3000.0,0.0002107,2]
[363695011,1748819440397,-1000.0,0.00021079,2]
[363695013,1748819440408,-3000.0,0.0002108,2]
[363695014,1748819440416,-3000.0,0.0002109,2]
[363695015,1748819440425,-430.0,0.00021095,2]
[363695016,1748819440435,-452.79,0.00021095,2]
[363695017,1748819440444,-762.9,0.00021095,2]
[363695018,1748819440453,-747.1,0.00021095,2]
[363695019,1748819440464,-999.17,0.00021095,2]
[363695020,1748819440475,-675.04,0.00021095,2]
[363695021,1748819440485,-960.76,0.00021095,2]
[363695022,1748819440494,-886.47,0.00021095,2]
[363695023,1748819440504,-767.87,0.00021095,2]
[363695024,1748819440514,-3000.0,0.000211,2]
[363695025,1748819440523,-3000.0,0.0002111,2]
[363695026,1748819440533,-3000.0,0.0002112,2]
[363695027,1748819440543,-3000.0,0.0002113,2]
[363695028,1748819440553,-986.75243515,0.00021139,2]
[363695029,1748819440563,-3000.0,0.0002114,2]
[363695030,1748819440574,-5517.637473,0.0002115,2]
[363695031,1748819440584,-1200.0,0.00021163,2]
[363695032,1748819440594,-305.21,0.000212,2]
[363695033,1748819440604,-151.0,0.000212,3]
[363695034,1748819440614,-151.0,0.000212,3]
[363695036,1748819440626,-4033.05651081,0.0002121,4]
[363695038,1748819440636,-430.0,0.00021369,2]
[363695040,1748819440646,-452.79,0.00021369,2]
[363695042,1748819440656,-762.9,0.00021369,2]
[363695044,1748819440667,-747.1,0.00021369,2]
[363695046,1748819440679,-999.17,0.00021369,2]
[363695048,1748819440690,-675.04,0.00021369,2]
[363695050,1748819440700,-960.76,0.00021369,2]
[363695051,1748819440710,-886.47,0.00021369,2]
[363695054,1748819440721,-767.87,0.00021369,2]
[363695056,1748819440731,-4033.05651081,0.00021417,5]
[363695058,1748819440741,-823.0,0.00021447,2]
[363695060,1748819440751,-2691.03,0.00021468,2]
[363695062,1748819440761,-151.0,0.000216,3]
[363695064,1748819440771,-4033.05651081,0.00021624,5]
[363695065,1748819440781,-430.0,0.00021643,2]
[363695067,1748819440791,-452.79,0.00021643,2]
[363695069,1748819440800,-762.9,0.00021643,2]
[363695071,1748819440810,-747.1,0.00021643,2]
[363695073,1748819440820,-999.17,0.00021643,2]
[363695075,1748819440831,-675.04,0.00021643,2]
[363695077,1748819440841,-960.76,0.00021643,2]
[363695079,1748819440851,-886.47,0.00021643,2]
[363695081,1748819440862,-767.87,0.00021643,2]
[363695084,1748819440873,-2614.29,0.000217,2]
[363695086,1748819440884,-3292.0,0.00021769,2]
[363695087,1748819440894,-257.08,0.000218,2]
[363695090,1748819440904,-4033.05651081,0.00021831,6]
[363695092,1748819440914,-5000.0,0.00021874,2]
[363695096,1748819440924,-151.0,0.000219,4]
[363695098,1748819440933,-151.0,0.000219,4]
[363695100,1748819440943,-511.25609104,0.00021917,2]
[363695102,1748819440953,-452.79,0.00021917,2]
[363695104,1748819440963,-762.9,0.00021917,2]
[363695106,1748819440973,-747.1,0.00021917,2]
[363695107,1748819440982,-999.17,0.00021917,2]
[363695109,1748819440992,-675.04,0.00021917,2]
[363695110,1748819441001,-960.76,0.00021917,2]
[363695111,1748819441010,-886.47,0.00021917,2]
[363695112,1748819441021,-767.87,0.00021917,2]
[363695113,1748819441030,-150.0,0.00021918,2]
[363695114,1748819441040,-162.072517,0.00021969,7]
[363695115,1748819441050,-162.072517,0.00021969,7]
[363695117,1748819441059,-176.580531,0.00021969,7]
[363695119,1748819441070,-176.580531,0.00021969,7]
[363695121,1748819441080,-170.0,0.00022,2]
[363695123,1748819441090,-158.296175,0.00022016,2]
[363695125,1748819441100,-4033.05651081,0.00022038,6]
[363695127,1748819441110,-151.0,0.000221,8]
[363695129,1748819441119,-250.0,0.00022123,2]
[363695131,1748819441130,-452.79,0.00022191,2]
[363695133,1748819441141,-762.9,0.00022191,2]
[363695135,1748819441151,-747.1,0.00022191,2]
[363695137,1748819441160,-999.17,0.00022191,2]
[363695140,1748819441171,-675.04,0.00022191,2]
[363695142,1748819441180,-960.76,0.00022191,2]
[363695144,1748819441190,-886.47,0.00022191,2]
[363695146,1748819441200,-767.87,0.00022191,2]
[363695148,1748819441210,-170.0,0.00022192,7]
[363695150,1748819441220,-305.21,0.000222,7]
[363695152,1748819441229,-3874.26074728,0.00022201,2]
[363695153,1748819441238,-4033.05651081,0.00022245,6]
[363695156,1748819441248,-1200.0,0.00022259,2]
[363695157,1748819441258,-2226.0,0.00022315,2]
[363695159,1748819441267,-708.0,0.00022315,2]
[363695161,1748819441277,-185.0804423,0.00022384,2]
[363695164,1748819441286,-4033.05651081,0.00022452,7]
[363695166,1748819441297,-452.79,0.00022465,2]
[363695168,1748819441306,-762.9,0.00022465,2]
[363695170,1748819441317,-747.1,0.00022465,2]
[363695171,1748819441327,-999.17,0.00022465,2]
[363695173,1748819441337,-675.04,0.00022465,2]
[363695176,1748819441347,-960.76,0.00022465,2]
[363695177,1748819441356,-886.47,0.00022465,2]
[363695179,1748819441366,-767.87,0.00022465,2]
[363695181,1748819441377,-151.0,0.00022482,2]
[363695183,1748819441387,-207.4,0.00022482,2]
[363695185,1748819441399,-154.67873888,0.00022482,2]
[363695187,1748819441409,-800.0,0.00022482,2]
[363695189,1748819441419,-300.0,0.00022482,2]
[363695191,1748819441429,-800.0,0.00022482,2]
[363695194,1748819441440,-800.0,0.00022482,2]
[363695195,1748819441449,-300.0,0.00022482,2]
[363695197,1748819441459,-800.0,0.00022482,2]
[363695200,1748819441469,-300.0,0.00022482,2]
[363695202,1748819441479,-800.0,0.00022482,2]
[363695204,1748819441490,-300.0,0.00022482,2]
[363695206,1748819441500,-5000.0,0.00022482,2]
[363695208,1748819441510,-800.0,0.00022482,2]
[363695210,1748819441520,-300.0,0.00022482,2]
[363695226,1748819441668,-800.0,0.00022482,2]
[363695228,1748819441678,-300.0,0.00022482,2]
[363695230,1748819441687,-800.0,0.00022482,2]
[363695231,1748819441698,-300.0,0.00022482,2]
[363695232,1748819441707,-800.0,0.00022482,2]
[363695233,1748819441718,-300.0,0.00022482,2]
[363695234,1748819441728,-800.0,0.00022482,2]
[363695235,1748819441738,-300.0,0.00022482,2]
[363695236,1748819441748,-800.0,0.00022482,2]
[363695237,1748819441757,-300.0,0.00022482,2]
[363695238,1748819441768,-800.0,0.00022482,2]
[363695239,1748819441779,-300.0,0.00022482,2]
[363695240,1748819441788,-800.0,0.00022482,2]
[363695241,1748819441798,-300.0,0.00022482,2]
[363695242,1748819441808,-800.0,0.00022482,2]
[363695243,1748819441818,-300.0,0.00022482,2]
[363695244,1748819441828,-300.0,0.00022482,2]
[363695245,1748819441838,-800.0,0.00022482,2]
[363695246,1748819441847,-300.0,0.00022482,2]
[363695247,1748819441857,-7498.7979491,0.00022491,2]
[363695248,1748819441867,-5000.0,0.00022491,2]
[363695249,1748819441877,-5000.0,0.00022491,2]
[363695251,1748819441886,-5000.0,0.00022491,2]
[363695253,1748819441896,-5000.0,0.00022491,2]
[363695255,1748819441906,-151.0,0.000225,10]
[363695257,1748819441915,-21163.98,0.000225,2]
[363695259,1748819441925,-212.80060342,0.000225,7]
[363695261,1748819441935,-657.40679757,0.00022558,2]
[363695263,1748819441945,-151.0,0.000226,10]
[363695265,1748819441955,-4033.05651081,0.00022659,7]
[363695267,1748819441964,-185.0804423,0.00022685,2]
[363695269,1748819441974,-186.20887065,0.00022685,2]
[363695271,1748819441984,-151.0,0.00022693,7]
[363695273,1748819441994,-151.0,0.000227,6]
[363695275,1748819442004,-452.92,0.00022739,2]
[363695277,1748819442013,-762.94978705,0.00022739,2]
[363695279,1748819442023,-747.25908283,0.00022739,2]
[363695281,1748819442032,-999.28725814,0.00022739,2]
[363695283,1748819442042,-675.20550594,0.00022739,2]
[363695285,1748819442052,-960.87748847,0.00022739,2]
[363695287,1748819442062,-886.48,0.00022739,2]
[363695289,1748819442071,-151.0,0.00022791,7]
[363695291,1748819442081,-151.0,0.00022791,7]
[363695293,1748819442091,-151.0,0.00022791,7]
[363695295,1748819442100,-151.0,0.00022791,7]
[363695297,1748819442109,-151.0,0.00022791,7]
[363695299,1748819442119,-151.0,0.00022791,7]
[363695301,1748819442130,-2614.29,0.000228,2]
[363695303,1748819442139,-4033.05651081,0.00022866,8]
[363695305,1748819442149,-751.56940287,0.00022905,2]
[363695307,1748819442158,-962.0,0.00022966,2]
[363695309,1748819442168,-185.0804423,0.00022986,2]
[363695311,1748819442178,-186.20887065,0.00022986,2]
[363695313,1748819442187,-160.0,0.00023,3]
[363695315,1748819442197,-423.51412927,0.00023,3]
[363695317,1748819442207,-212.80060342,0.00023,3]
[363695319,1748819442217,-229.3709046,0.00023,3]
[363695321,1748819442227,-170.0,0.00023014,7]
[363695323,1748819442236,-272.80097017,0.0002303,2]
[363695325,1748819442247,-5000.0,0.0002303,2]
[363695327,1748819442256,-4033.05651081,0.00023072,8]
[363695329,1748819442266,-352.4972578,0.00023096,2]